[Event "Chess Festival Groningen 2023 | A"]
[Site "Groningen, Netherlands"]
[Date "2023.12.26"]
[Round "5.23"]
[White "Smeets, Kobe"]
[Black "Boeren, Jurriaan"]
[Result "1/2-1/2"]
[TimeControl "90min/40moves + 30min + 30sec/move"]
[WhiteElo "2239"]
[BlackElo "2102"]

1. e4 {[%clk 01:30:57]} e6 {[%clk 01:30:54]} {[%emt 00:00:17]} 2. d4 {[%clk
01:31:18]} d5 {[%clk 01:31:20]} 3. Nc3 {[%clk 01:31:23]} {[%emt 00:00:19]} Nf6
{[%clk 01:30:07]} {[%emt 00:01:37]} 4. Bg5 {[%clk 01:31:45]} {[%emt 00:00:40]}
dxe4 {[%clk 01:30:32]} 5. Nxe4 {[%clk 01:31:55]} {[%emt 00:00:09]} Be7 {[%clk
01:30:56]} 6. Bxf6 {[%clk 01:29:49]} {[%emt 00:02:25]} gxf6 {[%clk 01:31:16]}
{[%emt 00:00:28]} 7. Nf3 {[%clk 01:29:46]} {[%emt 00:01:05]} f5 {[%clk
01:31:27]} 8. Nc3 {[%clk 01:29:15]} {[%emt 00:00:34]} a6 {[%clk 01:31:24]}
{[%emt 00:00:31]} 9. Qd2 {[%clk 01:25:46]} {[%emt 00:03:57]} Qd6 {[%clk
01:18:22]} {[%emt 00:13:33]} 10. g3 {[%clk 01:20:25]} {[%emt 00:05:50]} b5
{[%clk 01:17:20]} {[%emt 00:01:33]} 11. Bg2 {[%clk 01:17:59]} {[%emt 00:02:55]}
Bb7 {[%clk 01:17:28]} {[%emt 00:00:25]} 12. a4 {[%clk 01:08:32]} {[%emt
00:09:53]} b4 {[%clk 01:14:57]} {[%emt 00:03:02]} 13. Ne2 {[%clk 01:08:24]}
{[%emt 00:00:40]} c5 {[%clk 01:09:28]} {[%emt 00:06:12]} 14. O-O {[%clk
01:05:27]} {[%emt 00:03:32]} Nd7 {[%clk 01:04:04]} {[%emt 00:05:34]} 15. Rad1
{[%clk 00:59:31]} {[%emt 00:06:26]} Rc8 {[%clk 00:50:41]} {[%emt 00:13:53]} 16.
Rfe1 {[%clk 00:46:20]} {[%emt 00:13:41]} Bf6 {[%clk 00:43:45]} {[%emt
00:07:29]} 17. Qh6 {[%clk 00:38:37]} {[%emt 00:08:10]} Qf8 {[%clk 00:35:48]}
{[%emt 00:08:30]} 18. Qh5 {[%clk 00:38:23]} {[%emt 00:00:42]} Be4 {[%clk
00:18:09]} {[%emt 00:18:07]} 19. Nf4 {[%clk 00:36:49]} {[%emt 00:02:04]} Qe7
{[%clk 00:14:07]} {[%emt 00:04:33]} 20. d5 {[%clk 00:34:28]} {[%emt 00:02:57]}
O-O {[%clk 00:12:21]} {[%emt 00:02:18]} 21. dxe6 {[%clk 00:16:42]} {[%emt
00:18:27]} fxe6 {[%clk 00:12:10]} {[%emt 00:00:28]} 22. Rxe4 {[%clk 00:15:01]}
{[%emt 00:02:03]} fxe4 {[%clk 00:11:42]} {[%emt 00:00:58]} 23. Bh3 {[%clk
00:15:30]} Rc6 {[%clk 00:08:33]} {[%emt 00:03:40]} 24. Nxe6 {[%clk 00:05:25]}
{[%emt 00:10:52]} Rxe6 {[%clk 00:08:41]} {[%emt 00:00:10]} 25. Qg4+ {[%clk
00:05:47]} {[%emt 00:00:09]} Kh8 {[%clk 00:08:12]} {[%emt 00:01:26]} 26. Qxe6
{[%clk 00:06:03]} Qxe6 {[%clk 00:08:32]} 27. Bxe6 {[%clk 00:06:30]} exf3 {[%clk
00:08:30]} {[%emt 00:00:25]} 28. Rxd7 {[%clk 00:04:31]} {[%emt 00:02:27]} Bxb2
{[%clk 00:06:19]} {[%emt 00:02:42]} 29. Bd5 {[%clk 00:04:43]} {[%emt 00:00:18]}
Rf6 {[%clk 00:03:04]} {[%emt 00:03:44]} 30. Rf7 {[%clk 00:03:31]} {[%emt
00:01:45]} Rxf7 {[%clk 00:02:46]} {[%emt 00:00:47]} 31. Bxf7 {[%clk 00:04:00]}
{[%emt 00:00:35]} Kg7 {[%clk 00:03:02]} 32. Bd5 {[%clk 00:02:40]} {[%emt
00:01:59]} Kf6 {[%clk 00:03:04]} 33. Bxf3 {[%clk 00:02:32]} {[%emt 00:00:56]}
Ke5 {[%clk 00:03:20]} {[%emt 00:00:09]} 34. Bb7 {[%clk 00:01:29]} {[%emt
00:01:18]} a5 {[%clk 00:03:21]} {[%emt 00:00:32]} 35. Kf1 {[%clk 00:01:26]}
{[%emt 00:00:30]} Kd4 {[%clk 00:02:01]} {[%emt 00:01:49]} 36. Ke2 {[%clk
00:01:55]} {[%emt 00:00:41]} Kc3 {[%clk 00:02:06]} {[%emt 00:00:19]} 37. Kd1
{[%clk 00:01:55]} {[%emt 00:00:09]} b3 {[%clk 00:01:30]} {[%emt 00:00:52]} 38.
cxb3 {[%clk 00:02:19]} {[%emt 00:00:29]} Kxb3 {[%clk 00:01:57]} 39. Be4 {[%clk
00:02:37]} h6 {[%clk 00:01:44]} {[%emt 00:00:46]} 40. Bc2+ {[%clk 00:01:47]}
{[%emt 00:01:10]} Kb4 {[%clk 00:01:17]} {[%emt 00:00:59]} 41. f4 {[%clk
00:23:48]} {[%emt 00:08:26]} Bd4 {[%clk 00:29:48]} {[%emt 00:01:59]} 42. Ke2
{[%clk 00:19:01]} {[%emt 00:05:18]} Kc3 {[%clk 00:27:31]} {[%emt 00:03:19]} 43.
Kd1 {[%clk 00:05:24]} {[%emt 00:13:35]} 1/2-1/2

[Event "Chess Festival Groningen 2023 | A"]
[Site "Groningen, Netherlands"]
[Date "2023.12.26"]
[Round "5.24"]
[White "Labruyere, Roger"]
[Black "Boer, Alef"]
[Result "1/2-1/2"]
[TimeControl "90min/40moves + 30min + 30sec/move"]
[WhiteElo "2208"]
[BlackElo "2017"]

1. e4 {[%clk 01:30:58]} e5 {[%clk 01:30:48]} {[%emt 00:00:17]} 2. Bc4 {[%clk
01:30:50]} {[%emt 00:00:08]} Nf6 {[%clk 01:27:12]} {[%emt 00:04:34]} 3. d3
{[%clk 01:30:42]} {[%emt 00:00:11]} Bc5 {[%clk 01:22:12]} {[%emt 00:05:28]} 4.
Nf3 {[%clk 01:24:13]} {[%emt 00:06:59]} d6 {[%clk 01:22:34]} {[%emt 00:00:40]}
5. h3 {[%clk 01:24:28]} h6 {[%clk 01:22:10]} {[%emt 00:00:37]} 6. c3 {[%clk
01:22:03]} {[%emt 00:02:56]} O-O {[%clk 01:21:35]} {[%emt 00:01:43]} 7. O-O
{[%clk 01:20:06]} {[%emt 00:02:08]} a6 {[%clk 01:18:33]} {[%emt 00:03:25]} 8.
d4 {[%clk 01:17:50]} {[%emt 00:02:53]} exd4 {[%clk 01:18:46]} {[%emt 00:00:19]}
9. cxd4 {[%clk 01:18:18]} Ba7 {[%clk 01:19:01]} 10. Nc3 {[%clk 01:17:19]}
{[%emt 00:01:24]} Nxe4 {[%clk 01:15:03]} {[%emt 00:04:30]} 11. Nxe4 {[%clk
01:14:20]} {[%emt 00:03:27]} d5 {[%clk 01:14:24]} {[%emt 00:01:09]} 12. Bd3
{[%clk 01:09:57]} {[%emt 00:05:32]} dxe4 {[%clk 01:14:45]} 13. Bxe4 {[%clk
01:10:25]} Nd7 {[%clk 01:13:00]} {[%emt 00:02:10]} 14. Bf4 {[%clk 01:09:42]}
{[%emt 00:01:23]} Re8 {[%clk 01:11:11]} {[%emt 00:01:47]} 15. Bc2 {[%clk
01:09:06]} {[%emt 00:01:21]} c6 {[%clk 01:10:21]} {[%emt 00:01:03]} 16. Qd3
{[%clk 01:09:20]} {[%emt 00:00:16]} Nf8 {[%clk 01:10:44]} {[%emt 00:00:37]} 17.
Rad1 {[%clk 01:08:55]} {[%emt 00:00:29]} Be6 {[%clk 01:07:47]} {[%emt
00:03:45]} 18. Ne5 {[%clk 01:09:06]} {[%emt 00:00:15]} Qf6 {[%clk 01:04:14]}
{[%emt 00:03:49]} 19. Qg3 {[%clk 01:07:02]} {[%emt 00:02:51]} Rad8 {[%clk
00:58:27]} {[%emt 00:06:35]} 20. Be3 {[%clk 00:58:12]} {[%emt 00:09:36]} Bb8
{[%clk 00:54:55]} {[%emt 00:03:08]} 21. f4 {[%clk 00:57:20]} {[%emt 00:01:22]}
Bf5 {[%clk 00:47:51]} {[%emt 00:08:11]} 22. Bb3 {[%clk 00:54:06]} {[%emt
00:03:07]} Bxe5 {[%clk 00:33:38]} {[%emt 00:14:45]} 23. fxe5 {[%clk 00:52:19]}
{[%emt 00:02:14]} Qg6 {[%clk 00:34:04]} {[%emt 00:00:29]} 24. Qf2 {[%clk
00:46:44]} {[%emt 00:06:03]} Be6 {[%clk 00:33:47]} {[%emt 00:00:28]} 25. Bc2
{[%clk 00:47:11]} {[%emt 00:00:25]} Qh5 {[%clk 00:33:50]} {[%emt 00:00:04]} 26.
Bc1 {[%clk 00:41:37]} {[%emt 00:06:01]} Ng6 {[%clk 00:20:41]} {[%emt 00:13:40]}
27. Qe3 {[%clk 00:33:13]} {[%emt 00:09:16]} Rd7 {[%clk 00:13:30]} {[%emt
00:07:18]} 28. b3 {[%clk 00:27:38]} {[%emt 00:06:05]} Red8 {[%clk 00:13:52]}
{[%emt 00:00:41]} 29. Bb2 {[%clk 00:25:29]} {[%emt 00:02:06]} Qh4 {[%clk
00:12:02]} {[%emt 00:02:20]} 30. Rd2 {[%clk 00:25:20]} {[%emt 00:00:39]} c5
{[%clk 00:10:34]} {[%emt 00:01:59]} 31. d5 {[%clk 00:22:33]} {[%emt 00:03:17]}
Rxd5 {[%clk 00:10:44]} {[%emt 00:00:37]} 32. Rxd5 {[%clk 00:22:55]} Rxd5 {[%clk
00:10:52]} {[%emt 00:00:35]} 33. Be4 {[%clk 00:22:59]} {[%emt 00:00:12]} Rd7
{[%clk 00:10:42]} {[%emt 00:00:32]} 34. Bxg6 {[%clk 00:17:53]} {[%emt
00:05:35]} fxg6 {[%clk 00:11:01]} {[%emt 00:00:40]} 35. Qxc5 {[%clk 00:18:17]}
Qg3 {[%clk 00:07:06]} {[%emt 00:04:02]} 36. Qf2 {[%clk 00:15:11]} {[%emt
00:04:03]} Qg5 {[%clk 00:05:11]} {[%emt 00:01:59]} 37. h4 {[%clk 00:14:33]}
{[%emt 00:01:07]} Qg4 {[%clk 00:04:58]} {[%emt 00:00:43]} 38. Ba3 {[%clk
00:12:02]} {[%emt 00:03:02]} Rd1 {[%clk 00:04:09]} {[%emt 00:01:39]} 39. Rxd1
{[%clk 00:08:25]} {[%emt 00:03:57]} Qxd1+ {[%clk 00:04:30]} {[%emt 00:00:05]}
40. Kh2 {[%clk 00:08:52]} Qg4 {[%clk 00:04:28]} {[%emt 00:00:31]} 41. Bc1
{[%clk 00:03:36]} {[%emt 00:05:44]} Bd5 {[%clk 00:03:57]} {[%emt 00:00:59]} 42.
Be3 {[%clk 00:01:11]} {[%emt 00:03:16]} Kh7 {[%clk 00:01:31]} {[%emt 00:02:39]}
43. Qg3 {[%clk 00:24:00]} {[%emt 00:07:40]} 1/2-1/2

[Event "Chess Festival Groningen 2023 | A"]
[Site "Groningen, Netherlands"]
[Date "2023.12.26"]
[Round "5.25"]
[White "Ter-Avetisjana, Agnesa Stepania"]
[Black "Mierins, Emils Janis"]
[Result "0-1"]
[TimeControl "90min/40moves + 30min + 30sec/move"]
[WhiteFideId "11614900"]
[WhiteElo "1974"]
[BlackElo "2258"]

1. d4 {[%clk 01:30:58]} {[%emt 00:00:05]} Nf6 {[%clk 01:30:51]} {[%emt
00:00:10]} 2. Nf3 {[%clk 01:31:20]} {[%emt 00:00:13]} c5 {[%clk 01:31:11]}
{[%emt 00:00:04]} 3. e3 {[%clk 01:31:45]} {[%emt 00:00:06]} g6 {[%clk
01:31:22]} {[%emt 00:00:22]} 4. Bd3 {[%clk 01:31:51]} {[%emt 00:00:24]} Bg7
{[%clk 01:31:43]} {[%emt 00:00:05]} 5. O-O {[%clk 01:32:06]} {[%emt 00:00:12]}
O-O {[%clk 01:32:04]} {[%emt 00:00:43]} 6. b3 {[%clk 01:32:13]} cxd4 {[%clk
01:30:13]} {[%emt 00:02:49]} 7. exd4 {[%clk 01:32:34]} d5 {[%clk 01:30:32]}
{[%emt 00:00:09]} 8. Bb2 {[%clk 01:32:05]} {[%emt 00:00:37]} Nc6 {[%clk
01:30:41]} {[%emt 00:00:13]} 9. Ne5 {[%clk 01:30:22]} {[%emt 00:02:55]} Nb4
{[%clk 01:15:49]} {[%emt 00:14:41]} 10. Be2 {[%clk 01:29:21]} {[%emt 00:01:31]}
Bf5 {[%clk 01:15:54]} {[%emt 00:00:37]} 11. g4 {[%clk 01:24:24]} {[%emt
00:05:15]} Bd7 {[%clk 01:11:51]} {[%emt 00:04:32]} 12. c4 {[%clk 01:18:46]}
{[%emt 00:06:08]} dxc4 {[%clk 01:07:42]} {[%emt 00:04:39]} 13. bxc4 {[%clk
01:18:55]} {[%emt 00:00:22]} Nc6 {[%clk 01:06:19]} {[%emt 00:02:24]} 14. d5
{[%clk 01:14:26]} {[%emt 00:04:28]} Nxe5 {[%clk 01:05:43]} {[%emt 00:01:04]} 15.
Bxe5 {[%clk 01:14:48]} {[%emt 00:00:43]} Ne8 {[%clk 00:49:48]} {[%emt
00:15:52]} 16. Bxg7 {[%clk 01:09:21]} {[%emt 00:05:58]} Kxg7 {[%clk 00:49:42]}
{[%emt 00:00:37]} 17. Qd4+ {[%clk 01:06:37]} {[%emt 00:03:12]} Kg8 {[%clk
00:49:47]} {[%emt 00:00:25]} 18. f4 {[%clk 01:04:49]} {[%emt 00:02:19]} b6
{[%clk 00:44:59]} {[%emt 00:05:18]} 19. Nd2 {[%clk 01:00:30]} {[%emt 00:05:10]}
Nd6 {[%clk 00:40:08]} {[%emt 00:05:32]} 20. Rac1 {[%clk 00:59:12]} {[%emt
00:01:17]} Rc8 {[%clk 00:38:45]} {[%emt 00:02:13]} 21. Rc3 {[%clk 00:55:39]}
{[%emt 00:04:15]} Qc7 {[%clk 00:36:50]} {[%emt 00:01:57]} 22. Re3 {[%clk
00:47:02]} {[%emt 00:09:22]} Rfe8 {[%clk 00:34:52]} {[%emt 00:02:08]} 23. Rf2
{[%clk 00:42:48]} {[%emt 00:04:50]} b5 {[%clk 00:31:36]} {[%emt 00:04:08]} 24.
f5 {[%clk 00:35:01]} {[%emt 00:07:49]} bxc4 {[%clk 00:18:27]} {[%emt 00:14:08]}
25. fxg6 {[%clk 00:34:29]} {[%emt 00:00:31]} fxg6 {[%clk 00:17:59]} {[%emt
00:01:00]} 26. Nxc4 {[%clk 00:26:11]} {[%emt 00:08:48]} Nxc4 {[%clk 00:17:52]}
{[%emt 00:00:43]} 27. Rc3 {[%clk 00:26:36]} Qb6 {[%clk 00:14:27]} {[%emt
00:03:59]} 28. Rxc4 {[%clk 00:23:59]} {[%emt 00:02:59]} Rxc4 {[%clk 00:14:50]}
{[%emt 00:00:40]} 29. Qxc4 {[%clk 00:23:37]} {[%emt 00:00:20]} Rf8 {[%clk
00:15:13]} {[%emt 00:00:29]} 30. d6+ {[%clk 00:24:01]} {[%emt 00:00:08]} e6
{[%clk 00:15:35]} 31. Bf3 {[%clk 00:24:18]} {[%emt 00:00:11]} Rxf3 32. Qe2
Qxf2+ {[%clk 00:15:02]} {[%emt 00:00:47]} 0-1

[Event "Chess Festival Groningen 2023 | A"]
[Site "Groningen, Netherlands"]
[Date "2023.12.26"]
[Round "5.26"]
[White "Jaiveer, Mahendru"]
[Black "Schuricht, Emil Frederick"]
[Result "1-0"]
[TimeControl "90min/40moves + 30min + 30sec/move"]
[WhiteFideId "25611151"]
[WhiteElo "2294"]
[BlackElo "2095"]

1. e4 {[%clk 01:30:59]} {[%emt 00:00:06]} c6 {[%clk 01:30:56]} {[%emt
00:00:04]} 2. d4 {[%clk 01:31:26]} {[%emt 00:00:05]} d5 {[%clk 01:31:22]} 3. f3
{[%clk 01:31:55]} dxe4 {[%clk 01:31:38]} {[%emt 00:00:13]} 4. fxe4 {[%clk
01:32:22]} {[%emt 00:00:10]} e5 {[%clk 01:32:01]} {[%emt 00:00:04]} 5. Nf3
{[%clk 01:32:50]} Bg4 {[%clk 01:32:21]} {[%emt 00:00:09]} 6. c3 {[%clk
01:33:17]} {[%emt 00:00:04]} Nd7 {[%clk 01:32:25]} {[%emt 00:00:24]} 7. Bc4
{[%clk 01:33:37]} {[%emt 00:00:09]} Bd6 {[%clk 01:31:03]} {[%emt 00:01:52]} 8.
Qb3 {[%clk 01:34:03]} {[%emt 00:00:05]} Qe7 {[%clk 01:31:05]} {[%emt 00:00:27]}
9. Qxb7 {[%clk 01:34:04]} {[%emt 00:00:28]} Rb8 {[%clk 01:31:26]} {[%emt
00:00:10]} 10. Qxc6 {[%clk 01:34:29]} {[%emt 00:00:17]} Bxf3 {[%clk 01:31:15]}
{[%emt 00:00:34]} 11. gxf3 {[%clk 01:34:56]} Ngf6 {[%clk 01:30:56]} {[%emt
00:00:48]} 12. dxe5 {[%clk 01:35:22]} {[%emt 00:00:09]} Bxe5 {[%clk 01:31:17]}
{[%emt 00:00:07]} 13. Be3 {[%clk 01:35:27]} {[%emt 00:00:21]} O-O {[%clk
01:29:25]} {[%emt 00:02:22]} 14. Nd2 {[%clk 01:35:56]} {[%emt 00:00:10]} Rxb2
{[%clk 01:12:17]} {[%emt 00:17:30]} 15. Bb3 {[%clk 01:36:23]} {[%emt 00:00:10]}
Bd6 {[%clk 01:10:23]} {[%emt 00:02:17]} 16. Qa6 {[%clk 01:01:58]} {[%emt
00:34:54]} Bc5 {[%clk 00:56:38]} {[%emt 00:14:15]} 17. Qe2 {[%clk 01:01:23]}
{[%emt 00:01:09]} Rd8 {[%clk 00:46:50]} {[%emt 00:10:18]} 18. Rd1 {[%clk
00:38:27]} {[%emt 00:23:22]} Ne5 {[%clk 00:37:39]} {[%emt 00:09:40]} 19. O-O
{[%clk 00:29:38]} {[%emt 00:09:20]} Nxe4 {[%emt 00:04:21]} 20. fxe4 {[%emt
00:02:51]} Qg5+ {[%clk 00:34:40]} 21. Kh1 {[%clk 00:27:17]} {[%emt 00:00:07]}
Bxe3 {[%emt 00:01:03]} 22. Rf5 {[%clk 00:22:00]} Qh4 {[%clk 00:16:37]} 23. Qxe3
{[%clk 00:22:00]} Qxh2+ {[%clk 00:16:37]} 24. Kxh2 {[%clk 00:22:00]} Ng4+
{[%clk 00:16:37]} 25. Kg3 {[%clk 00:22:00]} Nxe3 {[%clk 00:16:37]} 26. Rxf7
{[%clk 00:22:00]} Rxb3 {[%clk 00:16:37]} 27. Nxb3 {[%clk 00:22:00]} Nxd1 {[%clk
00:16:37]} 28. Rxa7 {[%clk 00:22:00]} Nxc3 {[%clk 00:16:37]} 29. e5 {[%clk
00:22:00]} Re8 {[%clk 00:16:37]} 30. Kf4 {[%clk 00:22:00]} g5+ {[%clk
00:16:37]} 31. Kf5 {[%clk 00:22:00]} g4 {[%clk 00:16:37]} 32. Nc5 {[%clk
00:22:00]} g3 {[%clk 00:16:37]} 33. Nd7 {[%clk 00:22:00]} Rf8+ {[%clk
00:16:37]} 34. Nf6+ {[%clk 00:22:00]} Rxf6+ {[%clk 00:16:37]} 35. exf6 {[%clk
00:22:00]} Ne2 {[%clk 00:16:37]} 36. Rg7+ {[%clk 00:22:00]} Kf8 {[%clk
00:16:37]} 37. a4 {[%clk 00:22:00]} h5 {[%clk 00:16:37]} 38. a5 {[%clk
00:22:00]} h4 {[%clk 00:16:37]} 39. a6 {[%clk 00:22:00]} Nd4+ {[%clk 00:16:37]}
40. Kg4 {[%clk 00:22:00]} g2 {[%clk 00:16:37]} 41. Kh3 {[%clk 00:22:00]} Nb5
{[%clk 00:16:37]} 42. Kxg2 {[%clk 00:22:00]} 1-0

[Event "Chess Festival Groningen 2023 | A"]
[Site "Groningen, Netherlands"]
[Date "2023.12.26"]
[Round "5.27"]
[White "Besou, Hussain"]
[Black "Goudriaan, Rafael"]
[Result "0-1"]
[TimeControl "90min/40moves + 30min + 30sec/move"]
[WhiteElo "2280"]
[BlackElo "2039"]

1. e4 {[%clk 01:30:57]} {[%emt 00:00:09]} c6 {[%clk 01:30:51]} 2. d4 {[%clk
01:31:18]} d5 {[%clk 01:31:17]} {[%emt 00:00:14]} 3. e5 {[%clk 01:31:41]} c5
{[%clk 01:31:44]} {[%emt 00:00:03]} 4. Nf3 {[%clk 01:31:43]} {[%emt 00:00:24]}
Nc6 {[%clk 01:31:18]} {[%emt 00:00:57]} 5. dxc5 {[%clk 01:32:00]} {[%emt
00:00:13]} Bg4 {[%clk 01:30:37]} {[%emt 00:01:14]} 6. c3 {[%clk 01:25:14]}
{[%emt 00:07:17]} e6 {[%clk 01:28:48]} {[%emt 00:02:15]} 7. Be3 {[%clk
01:24:05]} {[%emt 00:01:48]} Nge7 {[%clk 01:20:41]} {[%emt 00:09:01]} 8. Bd4
{[%clk 01:16:49]} {[%emt 00:07:11]} Ng6 {[%clk 01:11:07]} {[%emt 00:10:04]} 9.
Nbd2 {[%clk 01:15:09]} {[%emt 00:02:14]} f6 {[%clk 01:01:40]} {[%emt 00:09:54]}
10. Qb3 {[%clk 01:11:53]} {[%emt 00:03:48]} Qd7 {[%clk 00:48:11]} {[%emt
00:13:56]} 11. exf6 {[%clk 01:06:30]} {[%emt 00:05:53]} e5 {[%clk 00:47:52]}
{[%emt 00:00:53]} 12. f7+ {[%clk 01:05:58]} {[%emt 00:00:57]} Qxf7 {[%clk
00:47:54]} {[%emt 00:00:34]} 13. Be3 {[%clk 01:05:39]} {[%emt 00:00:44]} Qd7
{[%clk 00:38:08]} {[%emt 00:10:16]} 14. O-O-O {[%clk 01:00:18]} {[%emt
00:06:02]} Bf5 {[%clk 00:33:45]} {[%emt 00:04:45]} 15. Bb5 {[%clk 00:53:07]}
{[%emt 00:07:37]} a6 {[%clk 00:29:42]} {[%emt 00:04:35]} 16. Ba4 {[%clk
00:50:24]} {[%emt 00:03:15]} O-O-O {[%clk 00:28:38]} {[%emt 00:01:35]} 17. Qb6
{[%clk 00:44:05]} {[%emt 00:06:47]} Qc7 {[%clk 00:22:33]} {[%emt 00:06:34]} 18.
Nb3 {[%clk 00:41:54]} {[%emt 00:02:40]} Be7 {[%clk 00:19:40]} {[%emt 00:03:22]}
19. Bxc6 {[%clk 00:31:52]} {[%emt 00:10:45]} Qxc6 {[%clk 00:20:04]} {[%emt
00:00:07]} 20. Qxc6+ {[%clk 00:30:55]} {[%emt 00:01:13]} bxc6 {[%clk 00:20:31]}
{[%emt 00:00:10]} 21. h3 {[%clk 00:29:44]} {[%emt 00:01:41]} Rhf8 {[%clk
00:17:20]} {[%emt 00:03:36]} 22. Rhe1 {[%clk 00:28:48]} {[%emt 00:01:29]} h6
{[%clk 00:16:38]} {[%emt 00:01:41]} 23. Na5 {[%clk 00:23:02]} {[%emt 00:05:41]}
Bd7 {[%clk 00:16:55]} {[%emt 00:00:22]} 24. Re2 {[%clk 00:21:09]} {[%emt
00:02:14]} Rf5 {[%clk 00:15:45]} {[%emt 00:01:45]} 25. Ne1 {[%clk 00:17:27]}
{[%emt 00:04:06]} Rdf8 {[%clk 00:08:54]} {[%emt 00:07:25]} 26. Nd3 {[%clk
00:14:33]} {[%emt 00:03:21]} Bd8 {[%clk 00:09:18]} {[%emt 00:00:09]} 27. Nb3
{[%clk 00:14:19]} {[%emt 00:00:54]} h5 {[%clk 00:07:19]} {[%emt 00:02:38]} 28.
f3 {[%clk 00:13:08]} {[%emt 00:01:20]} Re8 {[%clk 00:05:44]} {[%emt 00:02:06]}
29. Rde1 {[%clk 00:12:30]} {[%emt 00:01:07]} Rff8 {[%clk 00:05:22]} {[%emt
00:00:55]} 30. Bd2 {[%clk 00:12:18]} {[%emt 00:00:42]} Bh4 {[%clk 00:05:20]}
{[%emt 00:00:30]} 31. Rd1 {[%clk 00:12:16]} {[%emt 00:00:43]} Bd8 {[%clk
00:05:22]} {[%emt 00:00:17]} 32. a4 {[%clk 00:10:35]} {[%emt 00:02:31]} Bf5
{[%clk 00:05:04]} {[%emt 00:00:30]} 33. Nf2 {[%clk 00:07:29]} {[%emt 00:03:33]}
Nh4 {[%clk 00:04:32]} {[%emt 00:01:03]} 34. Rg1 {[%clk 00:06:50]} {[%emt
00:01:08]} Bg6 {[%clk 00:04:33]} {[%emt 00:00:29]} 35. Kd1 {[%clk 00:03:12]}
{[%emt 00:04:10]} Nf5 {[%clk 00:03:33]} {[%emt 00:01:27]} 36. g3 {[%clk
00:02:50]} {[%emt 00:00:52]} h4 {[%clk 00:03:03]} {[%emt 00:01:00]} 37. Ng4
{[%clk 00:02:26]} {[%emt 00:00:54]} Nxg3 {[%clk 00:03:05]} {[%emt 00:00:53]} 38.
Rxe5 {[%clk 00:02:51]} {[%emt 00:00:04]} Rxf3 {[%clk 00:02:52]} {[%emt
00:00:59]} 39. Nd4 {[%clk 00:02:59]} {[%emt 00:00:08]} Rxe5 {[%clk 00:00:36]}
{[%emt 00:02:20]} 40. Nxe5 {[%clk 00:02:41]} {[%emt 00:00:56]} Rf6 {[%clk
00:00:59]} {[%emt 00:00:07]} 41. Bg5 {[%clk 00:26:58]} {[%emt 00:06:42]} Bh5+
{[%clk 00:28:24]} {[%emt 00:02:52]} 42. Kc1 {[%clk 00:21:36]} {[%emt 00:05:27]}
Rf1+ {[%clk 00:27:14]} {[%emt 00:01:39]} 43. Rxf1 {[%clk 00:21:53]} {[%emt
00:00:17]} Bxg5+ {[%clk 00:27:34]} {[%emt 00:00:05]} 44. Kc2 {[%clk 00:22:20]}
{[%emt 00:00:16]} Nxf1 {[%clk 00:27:48]} {[%emt 00:00:06]} 45. Ndxc6 {[%clk
00:22:31]} {[%emt 00:00:19]} Ne3+ {[%clk 00:26:50]} {[%emt 00:01:28]} 46. Kd3
{[%clk 00:22:25]} {[%emt 00:00:33]} Ng2 {[%clk 00:26:59]} {[%emt 00:00:22]} 47.
b4 {[%clk 00:22:16]} {[%emt 00:00:39]} Nf4+ {[%clk 00:25:32]} {[%emt 00:01:58]}
48. Kd4 {[%clk 00:22:40]} {[%emt 00:00:30]} Be8 {[%clk 00:20:54]} {[%emt
00:04:43]} 49. b5 {[%clk 00:22:05]} {[%emt 00:01:07]} axb5 {[%clk 00:20:54]}
{[%emt 00:00:30]} 50. axb5 {[%clk 00:22:29]} {[%emt 00:00:15]} Bf6 {[%clk
00:20:35]} {[%emt 00:00:41]} 51. Ke3 {[%clk 00:21:53]} {[%emt 00:01:06]} Nxh3
{[%clk 00:19:52]} {[%emt 00:01:11]} 52. b6 {[%clk 00:20:21]} {[%emt 00:02:08]}
Ng5 {[%clk 00:18:54]} {[%emt 00:01:26]} 53. c4 {[%clk 00:20:07]} {[%emt
00:00:45]} dxc4 {[%clk 00:18:33]} {[%emt 00:00:45]} 54. Na7+ {[%clk 00:20:31]}
{[%emt 00:00:40]} Kb7 {[%clk 00:18:47]} {[%emt 00:00:04]} 55. Nxc4 {[%clk
00:20:56]} Be7 {[%clk 00:12:36]} {[%emt 00:06:24]} 56. c6+ {[%clk 00:14:51]}
{[%emt 00:06:35]} Bxc6 {[%clk 00:12:53]} {[%emt 00:00:14]} 57. Na5+ {[%clk
00:15:18]} {[%emt 00:00:28]} Kxb6 {[%clk 00:13:11]} 58. N7xc6 {[%clk 00:15:44]}
Bc5+ {[%clk 00:11:17]} {[%emt 00:02:14]} 59. Kf4 {[%clk 00:16:04]} {[%emt
00:00:15]} Bd6+ {[%clk 00:10:42]} {[%emt 00:01:00]} 60. Ke3 {[%clk 00:14:37]}
{[%emt 00:01:57]} h3 {[%clk 00:10:58]} {[%emt 00:00:13]} 61. Kf2 {[%clk
00:15:05]} {[%emt 00:00:10]} Ne4+ {[%clk 00:11:09]} {[%emt 00:00:12]} 0-1